Workbook

Sheet CoronavirusTeletrabajo
D1: Al empezar el día… | E1: Empleados sanos | F1: Empleados infectados | G1: Empleados infectados - ALTA | H1: Empleados infectados - BAJA | I1: % Infectados en la oficina | K1: Durante el día… | L1: Núm. compañeros contacto físico | M1: Núm. infectados contacto físico | N1: P(infectarse en el día) | O1: Infecciones en el día | Q1: R0
A2: P(teletrabajo) | B2: 0.05 | D2: 0 | E2: =$B$3-F2 -> 999 | F2: =$B$4 -> 1 | G2: =F2-H2 -> 1 | H2: 0 | I2: =G2/(E2+G2) -> 0.001 | L2: =$B$5*(1-B$2)*((1-H2/$B$3)*(1-$B$6)+$B$6) -> 23.75 | M2: =I2*L2 -> 0.02375 | N2: =1-(1-$B$7)^M2 -> 0.000238666991 | O2: =E2*(1-B$2)*N2 -> 0.2265069078 | Q2: =(1-B2)*(B5*(1-B2))*B7*B8 -> 1.579375
A3: Número de empleados centro de trabajo | B3: 1000 | D3: 1 | E3: 998.7734931 | F3: =F2+O2 -> 1.226506908 | G3: =F3-H3 -> 1.226506908 | H3: 0 | I3: 0.001226506908 | L3: 23.75 | M3: =I3*L3 -> 0.02912953906 | N3: 0.0002927188003 | O3: 0.2777417897
A4: Número inicial de empleados infectados | B4: 1 | D4: 2 | E4: 998.4957513 | F4: 1.504248698 | G4: 1.504248698 | H4: 0 | I4: 0.001504248698 | L4: 23.75 | M4: 0.03572590657 | N4: 0.0003589929063 | O4: 0.3405302471
A5: Número de compañeros con los que se tiene trato cada día | B5: 25 | D5: 3 | E5: 998.1552211 | F5: 1.844778945 | G5: 1.844778945 | H5: 0 | I5: 0.001844778945 | L5: 23.75 | M5: 0.04381349994 | N5: 0.0004402434537 | O5: 0.4174597367
A6: Nivel de backup compañeros dados de baja | B6: 0.5 | D6: 4 | E6: 997.7377613 | F6: 2.262238681 | G6: 2.262238681 | H6: 0 | I6: 0.002262238681 | L6: 23.75 | M6: 0.05372816868 | N6: 0.0005398403738 | O6: 0.5116881697
A7: P(contagiarse en el día | contacto físico con 1 infectado) | B7: 0.01 | D7: 5 | E7: 997.2260731 | F7: 2.773926851 | G7: 2.773926851 | H7: 0 | I7: 0.002773926851 | L7: 23.75 | M7: 0.06588076271 | N7: 0.000661904636 | O7: 0.6270651329
A8: Días incubación enfermedad (días contagiando hasta baja) | B8: 7 | D8: 6 | E8: 996.599008 | F8: 3.400991984 | G8: 3.400991984 | H8: 0 | I8: 0.003400991984 | L8: 23.75 | M8: 0.08077355962 | N8: 0.0008114719807 | O8: 0.7682765624
D9: 7 | E9: 995.8307315 | F9: 4.169268546 | G9: 3.169268546 | H9: =$B$4 -> 1 | I9: 0.003172440987 | L9: 23.738125 | M9: 0.07530780071 | N9: 0.0007565823367 | O9: 0.7157565447
D10: 8 | E10: 995.1149749 | F10: 4.885025091 | G10: 3.658518183 | H10: =H9+O2 -> 1.226506908 | I10: 0.003663010891 | L10: 23.73543523 | M10: 0.08694315776 | N10: 0.0008734262767 | O10: 0.825701589
D11: 9 | E11: 994.2892733 | F11: 5.71072668 | G11: 4.206477983 | H11: =H10+O3 -> 1.504248698 | I11: 0.004212815104 | L11: 23.73213705 | M11: 0.0999791054 | N11: 0.001004318921 | O11: 0.9486543541
D12: 10 | E12: 993.340619 | F12: 6.659381034 | G12: 4.81460209 | H12: 1.844778945 | I12: 0.004823500381 | L12: 23.72809325 | M12: 0.1144524668 | N12: 0.001149624406 | O12: 1.084870188
D13: 11 | E13: 992.2557488 | F13: 7.744251222 | G13: 5.482012541 | H13: 2.262238681 | I13: 0.005494442281 | L13: 23.72313592 | M13: 0.130345401 | N13: 0.001309157362 | O13: 1.234067973
D14: 12 | E14: 991.0216808 | F14: 8.978319195 | G14: 6.204392344 | H14: 2.773926851 | I14: 0.006221650748 | L14: 23.71705962 | M14: 0.1475592617 | N14: 0.001481921008 | O14: 1.395185055
D15: 13 | E15: 989.6264957 | F15: 10.37350425 | G15: 6.972512266 | H15: 3.400991984 | I15: 0.006996306649 | L15: 23.70961322 | M15: 0.1658797246 | N15: 0.001665758026 | O15: 1.566054364
D16: 14 | E16: 988.0604414 | F16: 11.93955861 | G16: 7.770290068 | H16: 4.169268546 | I16: 0.007802822129 | L16: 23.70048994 | M16: 0.1849307073 | N16: 0.001856889562 | O16: 1.742983164
D17: 15 | E17: 986.3174582 | F17: 13.68254178 | G17: 8.797516687 | H17: 4.885025091 | I17: 0.008840703747 | L17: 23.69199033 | M17: 0.2094538677 | N17: 0.002102867585 | O17: 1.970390261
D18: 16 | E18: 984.347068 | F18: 15.65293204 | G18: 9.942205359 | H18: 5.71072668 | I18: 0.009999308678 | L18: 23.68218512 | M18: 0.2368054792 | N18: 0.002377144704 | O18: 2.222938648
D19: 17 | E19: 982.1241293 | F19: 17.87587069 | G19: 11.21648965 | H19: 6.659381034 | I19: 0.01129168529 | L19: 23.67091985 | M19: 0.2672845774 | N19: 0.002682694897 | O19: 2.503002421
D20: 18 | E20: 979.6211269 | F20: 20.37887311 | G20: 12.63462189 | H20: 7.744251222 | I20: 0.01273323123 | L20: 23.65803702 | M20: 0.3012432557 | N20: 0.003023017347 | O20: 2.813341077
D21: 19 | E21: 976.8077858 | F21: 23.19221419 | G21: 14.21389499 | H21: 8.978319195 | I21: 0.01434266804 | L21: 23.64338246 | M21: 0.339109186 | N21: 0.003402360021 | O21: 3.157279171
D22: 20 | E22: 973.6505066 | F22: 26.34949336 | G22: 15.97598911 | H22: 10.37350425 | I22: 0.01614345329 | L22: 23.62681464 | M22: 0.3814183784 | N22: 0.003826044772 | O22: 3.538968909
D23: 21 | E23: 970.1115377 | F23: 29.88846227 | G23: 17.94890365 | H23: 11.93955861 | I23: 0.01816579523 | L23: 23.60821774 | M23: 0.4288620492 | N23: 0.004300932016 | O23: 3.963764583
D24: 22 | E24: 966.1477732 | F24: 33.85222685 | G24: 20.16968507 | H24: 13.68254178 | I24: 0.02044948602 | L24: 23.58751982 | M24: 0.4823526566 | N24: 0.004836074552 | O24: 4.438744526
D25: 23 | E25: 961.7090286 | F25: 38.29097137 | G25: 22.63803933 | H25: 15.65293204 | I25: 0.02299802587 | L25: 23.56412143 | M25: 0.5419282743 | N25: 0.005431755543 | O25: 4.96257993
D26: 24 | E26: 956.7464487 | F26: 43.2535513 | G26: 25.37768062 | H26: 17.87587069 | I26: 0.02583958571 | L26: 23.53772404 | M26: 0.6082050376 | N26: 0.006094020568 | O26: 5.53891091
D27: 25 | E27: 951.2075378 | F27: 48.79246221 | G27: 28.41358911 | H27: 20.37887311 | I27: 0.02900467163 | L27: 23.50800088 | M27: 0.6818418462 | N27: 0.006829313076 | O27: 6.171289372
D28: 26 | E28: 945.0362484 | F28: 54.96375159 | G28: 31.7715374 | H28: 23.19221419 | I28: 0.03252588468 | L28: 23.47459246 | M28: 0.7635318873 | N28: 0.007644383837 | O28: 6.863008831
D29: 27 | E29: 938.1732396 | F29: 61.82676042 | G29: 35.47726706 | H29: 26.34949336 | I29: 0.03643737339 | L29: 23.43709977 | M29: 0.8539863553 | N29: 0.008546122182 | O29: 7.616855976
D30: 28 | E30: 930.5563836 | F30: 69.44361639 | G30: 39.55515413 | H30: 29.88846227 | I30: 0.04077382094 | L30: 23.39507451 | M30: 0.9539065789 | N30: 0.009541271935 | O30: 8.434756932
D31: 29 | E31: 922.1216267 | F31: 77.87837332 | G31: 44.02614648 | H31: 33.85222685 | I31: 0.04556875014 | L31: 23.34800481 | M31: 1.063939397 | N31: 0.01063598193 | O31: 9.317285508
D32: 30 | E32: 912.8043412 | F32: 87.19565883 | G32: 48.90468746 | H32: 38.29097137 | I32: 0.05085185436 | L32: 23.29529471 | M32: 1.184608934 | N32: 0.01183512502 | O32: 10.26299582
D33: 31 | E33: 902.5413453 | F33: 97.45865465 | G33: 54.20510335 | H33: 43.2535513 | I33: 0.05665566193 | L33: 23.23636408 | M33: 1.316471588 | N33: 0.01314383692 | O33: 11.26971344
D34: 32 | E34: =$B$3-F34 -> 891.2716319 | F34: 108.7283681 | G34: 59.93590588 | H34: 48.79246221 | I34: =G34/(E34+G34) -> 0.06301033529 | L34: =$B$5*(1-B$2)*((1-H34/$B$3)*(1-$B$6)+$B$6) -> 23.17058951 | M34: 1.459986614 | N34: =1-(1-$B$7)^M34 -> 0.01456622675 | O34: =E34*(1-B$2)*N34 -> 12.33334145
D35: 33 | E35: 878.9382905 | F35: =F34+O34 -> 121.0617095 | G35: 66.09795796 | H35: 54.96375159 | I35: 0.0699422462 | L35: 23.09730545 | M35: 1.615477424 | N35: 0.01610499581 | O35: 13.44753261
D36: 34 | E36: 865.4907578 | F36: 134.5092422 | G36: 72.68248174 | H36: 61.82676042 | I36: 0.07747234591 | L36: 23.01580722 | M36: 1.783088578 | N36: 0.01776101933 | O36: 14.60339818
D37: 35 | E37: 850.8873597 | F37: 149.1126403 | G37: 79.66902394 | H37: 69.44361639 | I37: 0.0856143973 | L37: 22.92535706 | M37: 1.962740627 | N37: 0.019532914 | O37: 15.78929414
D38: 36 | E38: 835.0980655 | F38: 164.9019345 | G38: 87.02356115 | H38: 77.87837332 | I38: 0.09437319181 | L38: 22.82519432 | M38: 2.154086441 | N38: 0.02141662829 | O38: 16.99073562
A39: Teletrabajo | B39: Empleados infectados | C39: R0 | D39: 37 | E39: 818.1073299 | F39: 181.8926701 | G39: 94.69701125 | H39: 87.19565883 | I39: 0.1037429458 | L39: 22.71455155 | M39: 2.35647449 | N39: 0.02340511024 | O39: 18.19049763
A40: 0 | B40: 893.8641382 | C40: 1.75 | D40: 38 | E40: 799.9168323 | F40: 200.0831677 | G40: 102.6245131 | H40: 97.45865465 | I40: 0.1137061627 | L40: 22.59267848 | M40: 2.568926775 | N40: 0.02548812743 | O40: 19.36896305
A41: 0.001000000047 | B41: 892.0607769 | C41: 1.74650175 | D41: 39 | E41: 780.5478692 | F41: 219.4521308 | G41: 110.7237627 | H41: 108.7283681 | I41: 0.1242312205 | L41: 22.45885063 | M41: 2.790090426 | N41: 0.02765183658 | O41: 20.50440302
A42: 0.002000000095 | B42: 890.2266915 | C42: 1.743007 | D42: 40 | E42: 760.0434662 | F42: 239.9565338 | G42: 118.8948242 | H42: 121.0617095 | I42: 0.1352709576 | L42: 22.3123922 | M42: 3.01821866 | N42: 0.02987864902 | O42: 21.57361837
A43: 0.003000000026 | B43: 888.3613342 | C43: 1.73951575 | D43: 41 | E43: 738.4698478 | F43: 261.5301522 | G43: 127.02091 | H43: 134.5092422 | I43: 0.1467617174 | L43: 22.15270275 | M43: 3.2511687 | N43: 0.03214726578 | O43: 22.55279715
A44: 0.00400000019 | B44: 886.464147 | C44: 1.736027999 | D44: 42 | E44: 715.9170507 | F44: 284.0829493 | G44: 134.970309 | H44: 149.1126403 | I44: 0.1586230039 | L44: 21.9792874 | M44: 3.48642059 | N44: 0.03443291545 | O44: 23.41855571
A45: 0.005000000354 | B45: 884.5345641 | C45: 1.732543749 | D45: 43 | E45: 692.498495 | F45: 307.501505 | G45: 142.5995705 | H45: 164.9019345 | I45: 0.1707578744 | L45: 21.79178953 | M45: 3.721119658 | N45: 0.03670781531 | O45: 24.14910152
A46: 0.006000000518 | B46: 882.5720099 | C46: 1.729062998 | D46: 44 | E46: 668.3493935 | F46: 331.6506065 | G46: 149.7579364 | H46: 181.8926701 | I46: 0.1830541434 | L46: 21.59002454 | M46: 3.952143448 | N46: 0.03894185676 | O46: 24.72542803
A47: 0.007000000682 | B47: 880.5758997 | C47: 1.725585748 | D47: 45 | E47: 643.6239654 | F47: 356.3760346 | G47: 156.2928668 | H47: 200.0831677 | I47: 0.1953863959 | L47: 21.37401238 | M47: 4.176191245 | N47: 0.04110349017 | O47: 25.13243177
A48: 0.00800000038 | B48: 878.5456409 | C48: 1.722111999 | D48: 46 | E48: 618.4915337 | F48: 381.5084663 | G48: 162.0563356 | H48: 219.4521308 | I48: 0.2076187021 | L48: 21.14400595 | M48: 4.389891073 | N48: 0.04316075495 | O48: 25.35983345
A49: 0.009000000544 | B49: 876.4806287 | C49: 1.718641748 | D49: 47 | E49: 593.1317002 | F49: 406.8682998 | G49: 166.911766 | H49: 239.9565338 | I49: 0.2196081848 | L49: 20.90051616 | M49: 4.589924416 | N49: 0.04508245441 | O49: 25.40284119
A50: 0.01000000071 | B50: 874.3802521 | C50: 1.715174998 | D50: 48 | E50: 567.728859 | F50: 432.271141 | G50: 170.7409888 | H50: 261.5301522 | I50: 0.2312091541 | L50: 20.64432944 | M50: 4.773157947 | N50: 0.04683937272 | O50: 25.26246045
A51: 0.01100000087 | B51: 872.2438903 | C51: 1.711711747 | D51: 49 | E51: 542.4663986 | F51: 457.5336014 | G51: 173.4506521 | H51: 284.0829493 | I51: 0.2422775822 | L51: 20.37651498 | M51: 4.936772783 | N51: 0.04840544689 | O51: 24.94541202
A52: 0.01200000104 | B52: 870.0709135 | C52: 1.708251996 | D52: 50 | E52: 517.5209866 | F52: 482.4790134 | G52: 174.9775084 | H52: 307.501505 | I52: 0.2526756516 | L52: 20.09841963 | M52: 5.078381275 | N52: 0.04975880525 | O52: 24.46366469
A53: 0.0130000012 | B53: 867.8606833 | C53: 1.704795746 | D53: 51 | E53: 493.0573219 | F53: 506.9426781 | G53: 175.2920716 | H53: 331.6506065 | I53: 0.2622760989 | L53: 19.81164905 | M53: 5.196122024 | N53: 0.050882593 | O53: 23.83363328
A54: 0.01400000136 | B54: 865.6125524 | C54: 1.701342995 | D54: 52 | E54: 469.2236886 | F54: 530.7763114 | G54: 174.4002768 | H54: 356.3760346 | I54: 0.2709661017 | L54: 19.51803459 | M54: 5.288725745 | N54: 0.0517655242 | O54: 23.0751297
A55: 0.01500000153 | B55: 863.3258654 | C55: 1.697893745 | D55: 53 | E55: 446.1485589 | F55: 553.8514411 | G55: 172.3429748 | H55: 381.5084663 | I55: 0.2786504995 | L55: 19.21958696 | M55: 5.355547507 | N55: 0.05240212681 | O55: 22.21017669
A56: 0.01600000076 | B56: 860.9999602 | C56: 1.694447997 | D56: 54 | E56: 423.9383822 | F56: 576.0616178 | G56: 169.193318 | H56: 406.8682998 | I56: 0.2852542158 | L56: 18.91843894 | M56: 5.396564464 | N56: 0.05279267856 | O56: 21.2618006
A57: 0.01700000092 | B57: 858.6341605 | C57: 1.691005747 | D57: 55 | E57: 402.6765816 | F57: 597.3234184 | G57: 165.0522774 | H57: 432.271141 | I57: 0.2907237756 | L57: 18.6167802 | M57: 5.41234063 | N57: 0.05294285184 | O57: 20.25290427
A58: 0.01800000109 | B58: 856.2277885 | C58: 1.687566996 | D58: 56 | E58: 382.4236773 | F58: 617.5763227 | G58: 160.0427213 | H58: 457.5336014 | I58: 0.2950278979 | L58: 18.31678848 | M58: 5.403963602 | N58: 0.0528631139 | O58: 19.20530109
A59: 0.01900000125 | B59: 853.7801564 | C59: 1.684131746 | D59: 57 | E59: 363.2183762 | F59: 636.7816238 | G59: 154.3026103 | H59: 482.4790134 | I59: 0.2981572039 | L59: 18.02056172 | M59: 5.372960294 | N59: 0.05256794606 | O59: 18.13896181
A60: 0.02000000142 | B60: 851.2905692 | C60: 1.680699995 | D60: 58 | E60: 345.0794144 | F60: 654.9205856 | G60: 147.9779074 | H60: 506.9426781 | I60: 0.3001231315 | L60: 17.7300557 | M60: 5.321199837 | N60: 0.05207495424 | O60: 17.07149498
A61: 0.02100000158 | B61: 848.7583249 | C61: 1.677271745 | D61: 59 | E61: 328.0079194 | F61: 671.9920806 | G61: 141.2157691 | H61: 530.7763114 | I61: 0.3009561806 | L61: 17.4470313 | M61: 5.250791903 | N61: 0.05140394292 | O61: 16.01785535
A62: 0.02200000174 | B62: 846.1827147 | C62: 1.673846994 | D62: 60 | E62: 311.9900641 | F62: 688.0099359 | G62: 134.1584948 | H62: 553.8514411 | I62: 0.3007036381 | L62: 17.17301414 | M62: 5.163987828 | N62: 0.05057601705 | O62: 14.99025406
A63: 0.02300000191 | B63: 843.5630235 | C63: 1.670425743 | D63: 61 | E63: 296.99981 | F63: 703.00019 | G63: 126.9385722 | H63: 576.0616178 | I63: 0.2994269391 | L63: 16.90926829 | M63: 5.063090447 | N63: 0.04961276291 | O63: 13.9982321
A64: 0.02400000207 | B64: 840.8985304 | C64: 1.667007993 | D64: 62 | E64: 283.0015779 | F64: 716.9984221 | G64: 119.6750037 | H64: 597.3234184 | I64: 0.2971988169 | L64: 16.65678441 | M64: 4.95037662 | N64: 0.04853554298 | O64: 13.04885349
A65: 0.02500000224 | B65: 838.188509 | C65: 1.663593742 | D65: 63 | E65: 269.9527244 | F65: 730.0472756 | G65: 112.4709529 | H65: 617.5763227 | I65: 0.2941003906 | L65: 16.41628117 | M65: 4.828034704 | N65: 0.04736492431 | O65: 12.14697584
A66: 0.0260000024 | B66: 835.4322281 | C66: 1.660182992 | D66: 64 | E66: =$B$3-F66 -> 257.8057486 | F66: 742.1942514 | G66: 105.4126276 | H66: 636.7816238 | I66: =G66/(E66+G66) -> 0.2902183219 | L66: 16.18821822 | M66: 4.698117526 | N66: =1-(1-$B$7)^M66 -> 0.04612024553 | O66: =E66*(1-B$2)*N66 -> 11.2955612
A67: 0.02700000256 | B67: 832.628952 | C67: 1.656775741 | D67: 65 | E67: 246.5101874 | F67: =F66+O66 -> 753.4898126 | G67: =F67-H67 -> 98.56922703 | H67: =H66+O59 -> 654.9205856 | I67: 0.2856421534 | L67: =$B$5*(1-B$2)*((1-H67/$B$3)*(1-$B$6)+$B$6) -> 15.97281805 | M67: =I67*L67 -> 4.562510142 | N67: 0.04481931674 | O67: 10.49599726
A68: 0.02800000273 | B68: 829.7779413 | C68: 1.653371991 | D68: 66 | E68: 236.0141901 | F68: 763.9858099 | G68: 91.99372931 | H68: 671.9920806 | I68: =G68/(E68+G68) -> 0.2804619153 | L68: 15.77009404 | M68: 4.422910779 | N68: 0.04347823811 | O68: =E68*(1-B$2)*N68 -> 9.748407099
A69: 0.02900000289 | B69: 826.8784537 | C69: 1.64997174 | D69: 67 | E69: 226.265783 | F69: 773.734217 | G69: 85.72428105 | H69: 688.0099359 | I69: 0.2747660612 | L69: 15.57988201 | M69: 4.280822815 | N69: 0.04211131889 | O69: 9.051933015
A70: 0.03000000305 | B70: 823.929744 | C70: 1.64657499 | D70: 68 | E70: 217.21385 | F70: 782.78615 | G70: 79.78596001 | H70: 703.00019 | I70: 0.2686397678 | L70: 15.40187274 | M70: 4.137555518 | N70: 0.04073107641 | O70: 8.404986227
A71: 0.03100000322 | B71: 820.9310658 | C71: 1.643181739 | D71: 69 | E71: 208.8088638 | F71: 791.1911362 | G71: 74.19271414 | H71: 716.9984221 | I71: 0.2621636059 | L71: 15.23564374 | M71: 3.9942313 | N71: 0.03934829555 | O71: 7.805459242
A72: 0.03200000152 | B72: 817.8816773 | C72: 1.639791995 | D72: 70 | E72: 201.0034046 | F72: 798.9965954 | G72: 68.94931989 | H72: 730.0472756 | I72: 0.2554125728 | L72: 15.0806886 | M72: 3.851797476 | N72: 0.03797213041 | O72: 7.250901117
A73: 0.03299999982 | B73: 814.7808254 | C73: 1.636405751 | D73: 71 | E73: 193.7525034 | F73: 806.2474966 | G73: 64.05324516 | H73: 742.1942514 | I73: 0.2484554573 | L73: 14.93644326 | M73: 3.711040842 | N73: 0.03661023322 | O73: 6.738658121
A74: 0.03399999812 | B74: 811.6277635 | C74: 1.633023006 | D74: 72 | E74: 187.0138453 | F74: 812.9861547 | G74: 59.49634208 | H74: 753.4898126 | I74: 0.2413544962 | L74: 14.80230848 | M74: 3.572603704 | N74: 0.03526889785 | O74: 6.265983597
A75: 0.03499999642 | B75: 808.4217468 | C75: 1.629643762 | D75: 73 | E75: 180.7478617 | F75: 819.2521383 | G75: 55.26632842 | H75: 763.9858099 | I75: 0.2341652779 | L75: 14.67766851 | M75: 3.437000325 | N75: 0.03395320856 | O75: 5.830121353
A76: 0.03599999472 | B76: 805.1620335 | C76: 1.626268018 | D76: 74 | E76: 174.9177404 | F76: 825.0822596 | G76: 51.34804267 | H76: 773.734217 | I76: 0.2269368438 | L76: 14.56190617 | M76: 3.304633027 | N76: 0.0326671867 | O76: 5.428366957
A77: 0.03699999303 | B77: 801.8478856 | C77: 1.622895774 | D77: 75 | E77: 169.4893734 | F77: 830.5106266 | G77: 47.72447661 | H77: 782.78615 | I77: 0.2197119411 | L77: 14.45441447 | M77: 3.17580746 | N77: 0.03141393085 | O77: 5.058111084
A78: 0.03799999133 | B78: 798.4785704 | C78: 1.619527029 | D78: 76 | E78: 164.4312623 | F78: 835.5687377 | G78: 44.37760147 | H78: 791.1911362 | I78: 0.2125273835 | L78: 14.35460526 | M78: 3.050746696 | N78: 0.03019574702 | O78: 4.71686856
A79: 0.03899998963 | B79: 795.0533615 | C79: 1.616161785 | D79: 77 | E79: 159.7143938 | F79: 840.2856062 | G79: 41.28901079 | H79: 798.9965954 | I79: 0.2054144848 | L79: 14.26191543 | M79: 2.92960401 | N79: 0.02901426731 | O79: 4.402296308
A80: 0.03999998793 | B80: 791.5715402 | C80: 1.612800041 | D80: 78 | E80: 155.3120975 | F80: 844.6879025 | G80: 38.44040598 | H80: 806.2474966 | I80: 0.1983995319 | L80: 14.17581098 | M80: 2.812474262 | N80: 0.02787055635 | O80: 4.112202836
A81: 0.04099998623 | B81: 788.0323966 | C81: 1.609441796 | D81: 79 | E81: 151.1998946 | F81: 848.8001054 | G81: 35.81395069 | H81: 812.9861547 | I81: 0.1915042741 | L81: 14.09578941 | M81: 2.69940392 | N81: 0.02676520546 | O81: 3.844551432
A82: 0.04199998453 | B82: 784.4352317 | C82: 1.606087052 | D82: 80 | E82: 147.3553432 | F82: 852.6446568 | G82: 33.39251853 | H82: 819.2521383 | I82: 0.1847464098 | L82: 14.02138086 | M82: 2.590399774 | N82: 0.02569841498 | O82: 3.597458821
A83: 0.04299998283 | B83: 780.7793579 | C83: 1.602735807 | D83: 81 | E83: 143.7578844 | F83: 856.2421156 | G83: 31.159856 | H83: 825.0822596 | I83: 0.1781400556 | L83: 13.95214817 | M83: 2.48543645 | N83: 0.0246700657 | O83: 3.369190629
A84: 0.04399998114 | B84: 777.0641016 | C84: 1.599388063 | D84: 82 | E84: 140.3886937 | F84: 859.6113063 | G84: 29.10067967 | H84: 830.5106266 | I84: 0.1716961901 | L84: 13.88768631 | M84: 2.384462828 | N84: 0.02367978013 | O84: 3.158154731
A85: 0.04499997944 | B85: 773.2888042 | C85: 1.596043819 | D85: 83 | E85: 137.230539 | F85: 862.769461 | G85: 27.20072332 | H85: 835.5687377 | I85: 0.1654230645 | L85: 13.82762124 | M85: 2.287407481 | N85: 0.02272697484 | O85: 2.962893257
A86: 0.04599997774 | B86: 769.4528238 | C86: 1.592703074 | D86: 84 | E86: 134.2676458 | F86: 865.7323542 | G86: 25.44674801 | H86: 840.2856062 | I86: 0.1593265792 | L86: 13.77160843 | M86: 2.194183261 | N86: 0.02181090474 | O86: 2.782073889
A87: 0.04699997604 | B87: 765.5555376 | C87: 1.58936583 | D87: 85 | E87: 131.4855719 | F87: 868.5144281 | G87: 23.8265256 | H87: 844.6879025 | I87: 0.1534106228 | L87: 13.71933116 | M87: 2.104691137 | N87: 0.02093070035 | O87: 2.614480849
A88: 0.04799997434 | B88: 761.5963428 | C88: 1.586032085 | D88: 86 | E88: 128.871091 | F88: 871.128909 | G88: 22.32880361 | H88: 848.8001054 | I88: 0.1476773755 | L88: 13.67049875 | M88: 2.018823377 | N88: 0.02008539901 | O88: 2.45900592
A89: 0.04899997264 | B89: 757.5746596 | C89: 1.582701841 | D89: 87 | E89: 126.4120851 | F89: 873.5879149 | G89: 20.9432581 | H89: 852.6446568 | I89: 0.1421275784 | L89: 13.6248447 | M89: 1.936466184 | N89: 0.01927397083 | O89: 2.314639698
A90: 0.04999997094 | B90: 753.4899322 | C90: 1.579375097 | D90: 88 | E90: 124.0974454 | F90: 875.9025546 | G90: 19.66043897 | H90: 856.2421156 | I90: 0.1367607701 | L90: 13.58212488 | M90: 1.857501858 | N90: 0.01849534008 | O90: 2.180463232
A91: 0.05099996924 | B91: 749.3416317 | C91: 1.576051852 | D91: 89 | E91: 121.9169822 | F91: 878.0830178 | G91: 18.47171158 | H91: 859.6113063 | I91: 0.1315754929 | L91: 13.54211574 | M91: 1.781810553 | N91: 0.01774840281 | O91: 2.055640123
A92: 0.05199996755 | B92: 745.1292578 | C92: 1.572732108 | D92: 90 | E92: 119.861342 | F92: 880.138658 | G92: 17.36919697 | H92: 862.769461 | I92: 0.1265694728 | L92: 13.50461265 | M92: 1.709271703 | N92: 0.01703204119 | O92: 1.939409149
A93: 0.05299996585 | B93: 740.8523408 | C93: 1.569415863 | D93: 91 | E93: 117.9219329 | F93: 882.0780671 | G93: 16.34571286 | H93: 865.7323542 | I93: 0.1217397741 | L93: 13.46942829 | M93: 1.639765158 | N93: 0.01634513515 | O93: 1.831077433
A94: 0.05399996415 | B94: 736.5104443 | C94: 1.566103119 | D94: 92 | E94: 116.0908555 | F94: 883.9091445 | G94: 15.39471641 | H94: 868.5144281 | I94: 0.117082933 | L94: 13.43639117 | M94: 1.573172087 | N94: 0.01568657158 | O94: 1.730014138
A95: 0.05499996245 | B95: 732.1031674 | C95: 1.562793874 | D95: 93 | E95: 114.3608413 | F95: 885.6391587 | G95: 14.51024969 | H95: 871.128909 | I95: 0.1125950714 | L95: 13.40534421 | M95: 1.509375688 | N95: 0.01505525181 | O95: 1.6356447
A96: 0.05599996075 | B96: 727.6301469 | C96: 1.55948813 | D96: 94 | E96: 112.7251966 | F96: 887.2748034 | G96: 13.68688847 | H96: 873.5879149 | I96: 0.1082719937 | L96: 13.37614351 | M96: 1.448261725 | N96: 0.01445009731 | O96: 1.547445557
A97: 0.05699995905 | B97: 723.0910597 | C97: 1.556185885 | D97: 95 | E97: 111.1777511 | F97: 888.8222489 | G97: 12.91969433 | H97: 875.9025546 | I97: 0.1041092691 | L97: 13.34865716 | M97: 1.38971894 | N97: 0.0138700541 | O97: 1.464939351
A98: 0.05799995735 | B98: 718.4856256 | C98: 1.552887141 | D98: 96 | E98: 109.7128117 | F98: 890.2871883 | G98: 12.20417045 | H98: 878.0830178 | I98: 0.1001023011 | L98: 13.32276416 | M98: 1.333639349 | N98: 0.01331409614 | O98: 1.387690577
A99: 0.05899995565 | B99: 713.8136092 | C99: 1.549591896 | D99: 97 | E99: 108.3251211 | F99: 891.6748789 | G99: 11.53622091 | H99: 880.138658 | I99: 0.09624638528 | L99: 13.29835344 | M99: 1.279918448 | N99: 0.01278122766 | O99: 1.315301633
A100: 0.05999995396 | B100: 709.0748229 | C100: 1.546300151 | D100: 98 | E100: 107.0098195 | F100: 892.9901805 | G100: 10.91211339 | H100: 882.0780671 | I100: 0.09253675819 | L100: 13.27532295 | M100: 1.22845535 | N100: 0.01227048489 | O100: 1.247409255
A101: 0.06099995226 | B101: 704.2691295 | C101: 1.543011907 | D101: 99 | E101: 105.7624102 | F101: 894.2375898 | G101: 10.32844521 | H101: 883.9091445 | I101: 0.08896863728 | L101: 13.25357891 | M101: 1.179152855 | N101: 0.01178093708 | O101: 1.183681286
A102: 0.06199995056 | B102: 699.3964442 | C102: 1.539727162 | D102: 100 | E102: 104.578729 | F102: 895.421271 | G102: 9.782112359 | H102: 885.6391587 | I102: 0.08553725424 | L102: 13.23303499 | M102: 1.131917478 | N102: 0.01131168709 | O102: 1.123813766
A103: 0.06299994886 | B103: 694.4567377 | C103: 1.536445918 | D103: 101 | E103: 103.4549152 | F103: 896.5450848 | G103: 9.270281424 | H103: 887.2748034 | I103: 0.08223788206 | L103: 13.21361171 | M103: 1.086659441 | N103: 0.01086187154 | O103: 1.067528299
A104: 0.06399995089 | B104: 689.4500197 | C104: 1.533168161 | D104: 102 | E104: 102.3873869 | F104: 897.6126131 | G104: 8.790364167 | H104: 888.8222489 | I104: 0.079065857 | L104: 13.19523579 | M104: 1.043292626 | N104: 0.01043066068 | O104: 1.014569686
A105: 0.06499995291 | B105: 684.3763975 | C105: 1.529893904 | D105: 103 | E105: 101.3728172 | F105: 898.6271828 | G105: 8.339994502 | H105: 890.2871883 | I105: 0.07601659616 | L105: 13.17783964 | M105: 1.001734514 | N105: 0.01001725797 | O105: 0.9647037785
A106: 0.06599995494 | B106: 679.2360228 | C106: 1.526623147 | D106: 104 | E106: 100.4081134 | F106: 899.5918866 | G106: 7.917007703 | H106: 891.6748789 | I106: 0.07308561136 | L106: 13.16136081 | M106: 0.9619061014 | N106: 0.009620899524 | O106: 0.9177155521
A107: 0.06699995697 | B107: 674.029113 | C107: 1.523355891 | D107: 105 | E107: 99.49039788 | F107: 900.5096021 | G107: 7.519421623 | H107: 892.9901805 | I107: 0.07026851982 | L107: 13.14574161 | M107: 0.9237318047 | N107: 0.009240853318 | O107: 0.8734073646
A108: 0.06799995899 | B108: 668.7559531 | C108: 1.520092134 | D108: 106 | E108: 98.61699051 | F108: 901.3830095 | G108: 7.145419733 | H108: 894.2375898 | I108: 0.06756105233 | L108: 13.13092862 | M108: 0.8871393557 | N108: 0.008876418382 | O108: 0.831597384
A109: 0.06899996102 | B109: 663.4168986 | C109: 1.516831877 | D109: 107 | E109: 97.78539313 | F109: 902.2146069 | G109: 6.793335831 | H109: 895.421271 | I109: 0.06495905906 | L109: 13.11687241 | M109: 0.8520596893 | N109: 0.008526923839 | O109: 0.7921181698
A110: 0.06999996305 | B110: 658.0123774 | C110: 1.51357512 | D110: 108 | E110: 96.99327496 | F110: 903.006725 | G110: 6.461640235 | H110: 896.5450848 | I110: 0.06245851367 | L110: 13.10352712 | M110: 0.8184268276 | N110: 0.008191727919 | O110: 0.7548153925
A111: 0.07099996507 | B111: 652.5428923 | C111: 1.510321864 | D111: 109 | E111: 96.23845957 | F111: 903.7615404 | G111: 6.148927328 | H111: 897.6126131 | I111: 0.06005551577 | L111: 13.09085022 | M111: 0.7861777617 | N111: 0.007870216929 | O111: 0.719546676
A112: 0.0719999671 | B112: 647.009023 | C112: 1.507072107 | D112: 110 | E112: 95.51891289 | F112: 904.4810871 | G112: 5.853904318 | H112: 898.6271828 | I112: 0.05774629214 | L112: 13.0788022 | M112: 0.755252333 | N112: 0.007561804206 | O112: 0.6861805514
A113: 0.07299996912 | B113: 641.4114281 | C113: 1.50382585 | D113: 111 | E113: 94.83273234 | F113: 905.1672677 | G113: 5.575381091 | H113: 899.5918866 | I113: 0.05552719696 | L113: 13.06734635 | M113: 0.7255931143 | N113: 0.007265929063 | O113: 0.6545955107
A114: 0.07399997115 | B114: 635.7508473 | C114: 1.500583093 | D114: 112 | E114: 94.17813683 | F114: 905.8218632 | G114: 5.312261049 | H114: 900.5096021 | I114: 0.05339471107 | L114: 13.05644847 | M114: 0.6971452939 | N114: 0.006982055738 | O114: 0.6246791506
A115: 0.07499997318 | B115: 630.0281027 | C115: 1.497343837 | D115: 113 | E115: 93.55345768 | F115: 906.4465423 | G115: 5.063532835 | H115: 901.3830095 | I115: 0.05134544067 | L115: 13.04607676 | M115: 0.6698565603 | N115: 0.006709672355 | O115: 0.5963273962
A116: 0.0759999752 | B116: 624.2441008 | C116: 1.49410808 | D116: 114 | E116: 92.95713028 | F116: 907.0428697 | G116: 4.828262847 | H116: 902.2146069 | I116: 0.04937611532 | L116: 13.03620154 | M116: 0.6436769907 | N116: 0.006448289908 | O116: 0.5694437988
A117: 0.07699997723 | B117: 618.399834 | C117: 1.490875824 | D117: 115 | E117: 92.38768648 | F117: 907.6123135 | G117: 4.605588476 | H117: 903.006725 | I117: 0.04748358562 | L117: 13.02679514 | M117: 0.6185589424 | N117: 0.006197441262 | O117: 0.5439388973
A118: 0.07799997926 | B118: 612.4963813 | C118: 1.487647067 | D118: 116 | E118: 91.84374758 | F118: 908.1562524 | G118: 4.394711981 | H118: 903.7615404 | I118: 0.0456648205 | L118: 13.01783171 | M118: 0.5944569482 | N118: 0.005956680192 | O118: 0.5197296404
A119: 0.07899998128 | B119: 606.5349101 | C119: 1.48442181 | D119: 117 | E119: 91.32401794 | F119: 908.6759821 | G119: 4.194894946 | H119: 904.4810871 | I119: 0.04391690419 | L119: 13.00928709 | M119: 0.5713276147 | N119: 0.005725580439 | O119: 0.4967388602
A120: 0.07999998331 | B120: 600.5166768 | C120: 1.481200054 | D120: 118 | E120: 90.82727908 | F120: 909.1727209 | G120: 4.005453254 | H120: 905.1672677 | I120: 0.0422370331 | L120: 13.0011387 | M120: 0.5491295254 | N120: 0.005503734807 | O120: 0.4748947945
A121: 0.08099998534 | B121: 594.4430271 | C121: 1.477981797 | D121: 119 | E121: 90.35238429 | F121: 909.6476157 | G121: 3.825752538 | H121: 905.8218632 | I121: 0.04062251247 | L121: 12.99336537 | M121: 0.527823147 | N121: 0.005290754295 | O121: 0.454130652
A122: 0.08199998736 | B122: 588.315397 | C122: 1.474767041 | D122: 120 | E122: 89.89825364 | F122: 910.1017464 | G122: 3.655204039 | H122: 906.4465423 | I122: 0.03907075302 | L122: 12.98594731 | M122: 0.5073707401 | N122: 0.005086267254 | O122: 0.4343842165
A123: 0.08299998939 | B123: 582.1353127 | C123: 1.471555784 | D123: 121 | E123: 89.46386942 | F123: 910.5361306 | G123: 3.49326086 | H123: 907.0428697 | I123: 0.03757926744 | L123: 12.97886592 | M123: 0.4877362736 | N123: 0.004889918588 | O123: 0.4155974861
A124: 0.08399999142 | B124: 575.9043904 | C124: 1.468348028 | D124: 122 | E124: 89.04827193 | F124: 910.9517281 | G124: 3.339414547 | H124: 907.6123135 | I124: 0.03614566696 | L124: 12.97210378 | M124: 0.4688853429 | N124: 0.004701368978 | O124: 0.397716344
A125: 0.08499999344 | B125: 569.6243361 | C125: 1.465143771 | D125: 123 | E125: 88.65055559 | F125: 911.3494444 | G125: 3.193191994 | H125: 908.1562524 | I125: 0.03476765787 | L125: 12.9656445 | M125: 0.4507850922 | N125: 0.004520294152 | O125: 0.3806902586
A126: 0.08599999547 | B126: 563.296945 | C126: 1.461943014 | D126: 124 | E126: 88.26986533 | F126: 911.7301347 | G126: 3.054152612 | H126: 908.6759821 | I126: 0.0334430381 | L126: 12.95947271 | M126: 0.4334041397 | N126: 0.004346384178 | O126: 0.3644720088
A127: 0.0869999975 | B127: 556.9241007 | C127: 1.458745758 | D127: 125 | E127: 87.90539332 | F127: 912.0946067 | G127: 2.92188576 | H127: 909.1727209 | I127: 0.03216969384 | L127: 12.95357394 | M127: 0.4167125078 | N127: 0.004179342794 | O127: 0.3490174336
A128: 0.08799999952 | B128: 550.5077736 | C128: 1.455552002 | D128: 126 | E128: 87.55637589 | F128: 912.4436241 | G128: 2.7960084 | H128: 909.6476157 | I128: 0.0309455962 | L128: 12.94793456 | M128: 0.4006815546 | N128: 0.004018886766 | O128: 0.3342852023
A129: 0.08900000155 | B129: 544.0500199 | C129: 1.452361745 | D129: 127 | E129: 87.22209069 | F129: 912.7779093 | G129: 2.67616295 | H129: 910.1017464 | I129: 0.02976879796 | L129: 12.94254176 | M129: 0.3852839109 | N129: 0.003864745278 | O129: 0.3202366049
A130: 0.09000000358 | B130: 537.5529793 | C130: 1.449174989 | D130: 128 | E130: =$B$3-F130 -> 86.90185408 | F130: 913.0981459 | G130: 2.562015338 | H130: 910.5361306 | I130: 0.02863743045 | L130: 12.93738345 | M130: 0.3704934187 | N130: =1-(1-$B$7)^M130 -> 0.00371665935 | O130: 0.3068353591
A131: 0.0910000056 | B131: 531.0188734 | C131: 1.445991732 | D131: 129 | E131: 86.59501872 | F131: =F130+O130 -> 913.4049813 | G131: =F131-H131 -> 2.453253211 | H131: =H130+O123 -> 910.9517281 | I131: 0.02754970038 | L131: =$B$5*(1-B$2)*((1-H131/$B$3)*(1-$B$6)+$B$6) -> 12.93244823 | M131: =I131*L131 -> 0.3562850739 | N131: 0.003574381288 | O131: 0.2940474339
A132: 0.09200000763 | B132: 524.4500032 | C132: 1.442811976 | D132: 130 | E132: 86.30097129 | F132: 913.6990287 | G132: 2.349584301 | H132: 911.3494444 | I132: =G132/(E132+G132) -> 0.02650388692 | L132: 12.92772535 | M132: 0.3426349708 | N132: 0.003437674153 | O132: =E132*(1-B$2)*N132 -> 0.2818408875
A133: 0.09300000966 | B133: 517.8487459 | C133: 1.439635719 | D133: 131 | E133: 86.0191304 | F133: 913.9808696 | G133: 2.25073493 | H133: 911.7301347 | I133: 0.02549833878 | L133: 12.92320465 | M133: 0.3295202503 | N133: 0.003306311261 | O133: 0.2701857185
A134: 0.09400001168 | B134: 511.2175526 | C134: 1.436462963 | D134: 132 | E134: 85.74894468 | F134: 914.2510553 | G134: 2.15644864 | H134: 912.0946067 | I134: 0.02453147137 | L134: 12.91887655 | M134: 0.3169190501 | N134: 0.003180075706 | O134: 0.259053729
A135: 0.09500001371 | B135: 504.5589446 | C135: 1.433293707 | D135: 133 | E135: 85.48989095 | F135: 914.510109 | G135: 2.066484935 | H135: 912.4436241 | I135: 0.02360176417 | L135: 12.91473196 | M135: 0.3048104581 | N135: 0.003058759908 | O135: 0.2484183985
A136: 0.09600001574 | B136: 497.8755099 | C136: 1.43012795 | D136: 134 | E136: 85.24147256 | F136: 914.7585274 | G136: 1.980618131 | H136: 912.7779093 | I136: 0.02270775804 | L136: 12.91076233 | M136: 0.2931744671 | N136: 0.002942165182 | O136: 0.238254768
A137: 0.09700001776 | B137: 491.1698993 | C137: 1.426965694 | D137: 135 | E137: 85.00321779 | F137: 914.9967822 | G137: 1.898636294 | H137: 913.0981459 | I137: 0.02184805278 | L137: 12.90695952 | M137: 0.2819919327 | N137: 0.002830101323 | O137: 0.2285393332
A138: 0.09800001979 | B138: 484.4448224 | C138: 1.423806938 | D138: 136 | E138: 84.77467845 | F138: 915.2253215 | G138: 1.820340268 | H138: 913.4049813 | I138: 0.02102130464 | L138: 12.90331585 | M138: 0.2712445332 | N138: 0.002722386225 | O138: 0.219249946
A139: 0.09900002182 | B139: 477.703043 | C139: 1.420651681 | D139: 137 | E139: 84.55542851 | F139: 915.4445715 | G139: 1.745542781 | H139: 913.6990287 | I139: 0.02022622405 | L139: 12.89982403 | M139: 0.2609147311 | N139: 0.002618845502 | O139: 0.2103657234
A140: 0.1000000238 | B140: 470.9473748 | C140: 1.417499925 | D140: 138 | E140: 84.34506279 | F140: 915.6549372 | G140: 1.674067617 | H140: 913.9808696 | I140: 0.01946157336 | L140: 12.89647717 | M140: 0.2509857366 | N140: 0.00251931214 | O140: 0.2018669636
A141: 0.1010000259 | B141: 464.1806759 | C141: 1.414351669 | D141: 139 | E141: 84.14319582 | F141: 915.8568042 | G141: 1.605748862 | H141: 914.2510553 | I141: 0.01872616471 | L141: 12.89326872 | M141: 0.2414414736 | N141: 0.002423626163 | O141: 0.1937350683
A142: 0.1020000279 | B142: 457.4058446 | C142: 1.411206912 | D142: 140 | E142: 83.94946075 | F142: 916.0505392 | G142: 1.540430201 | H142: 914.510109 | I142: 0.01801885795 | L142: 12.89019246 | M142: 0.2322665467 | N142: 0.00233163431 | O142: 0.1859524709
A143: 0.1030000299 | B143: 450.6258132 | C143: 1.408065656 | D143: 141 | E143: 83.76350828 | F143: 916.2364917 | G143: 1.477964273 | H143: 914.7585274 | I143: 0.01733855867 | L143: 12.88724249 | M143: 0.22344621 | N143: 0.002243189737 | O143: 0.17850257
A144: 0.1040000319 | B144: 443.8435434 | C144: 1.4049279 | D144: 142 | E144: 83.58500571 | F144: 916.4149943 | G144: 1.418212075 | H144: 914.9967822 | I144: 0.01668421634 | L144: 12.88441321 | M144: 0.2149663375 | N144: 0.002158151723 | O144: 0.1713696679
A145: 0.105000034 | B145: 437.0620201 | C145: 1.401793644 | D145: 143 | E145: 83.41363604 | F145: 916.586364 | G145: 1.36104241 | H145: 915.2253215 | I145: 0.01605482244 | L145: 12.88169931 | M145: 0.2068133951 | N145: 0.002076385403 | O145: 0.1645389135
A146: 0.106000036 | B146: 430.2842457 | C146: 1.398662887 | D146: 144 | E146: 83.24909713 | F146: 916.7509029 | G146: 1.306331378 | H146: 915.4445715 | I146: 0.01544940876 | L146: 12.87909571 | M146: 0.1989744141 | N146: 0.001997761501 | O146: 0.1579962491
A147: 0.107000038 | B147: 423.5132349 | C147: 1.395535631 | D147: 145 | E147: 83.09110088 | F147: 916.9088991 | G147: 1.253961903 | H147: 915.6549372 | I147: 0.0148670457 | L147: 12.87659762 | M147: 0.1914369653 | N147: 0.001922156084 | O147: 0.1517283618
A148: 0.1080000401 | B148: 416.7520078 | C148: 1.392411875 | D148: 146 | E148: 82.93937252 | F148: 917.0606275 | G148: 1.203823301 | H148: 915.8568042 | I148: 0.01430684073 | L148: 12.87420045 | M148: 0.1841891354 | N148: 0.001849450327 | O148: 0.1457226371
A149: 0.1090000421 | B149: 410.0035846 | C149: 1.389291619 | D149: 147 | E149: 82.79364988 | F149: 917.2063501 | G149: 1.15581087 | H149: 916.0505392 | I149: 0.0137679368 | L149: 12.87189985 | M149: 0.1772195036 | N149: 0.001779530286 | O149: 0.1399671171
A150: 0.1100000441 | B150: 403.2709797 | C150: 1.386174863 | D150: 148 | E150: 82.65368277 | F150: 917.3463172 | G150: 1.109825517 | H150: 916.2364917 | I150: 0.01324951091 | L150: 12.86969166 | M150: 0.17051712 | N150: 0.001712286687 | O150: 0.1344504606
A151: 0.1110000461 | B151: 396.557195 | C151: 1.383061606 | D151: 149 | E151: 82.51923231 | F151: 917.4807677 | G151: 1.065773407 | H151: 916.4149943 | I151: 0.01275077268 | L151: 12.86757194 | M151: 0.1640714848 | N151: 0.001647614716 | O151: 0.1291619064
A152: 0.1120000482 | B152: 389.8652146 | C152: 1.37995185 | D152: 150 | E152: 82.3900704 | F152: 917.6099296 | G152: 1.023565646 | H152: 916.586364 | I152: 0.01227096305 | L152: 12.86553693 | M152: 0.1578725282 | N152: 0.001585413832 | O152: 0.1240912394
A153: 0.1130000502 | B153: 383.1979984 | C153: 1.376845594 | D153: 151 | E153: 82.26597916 | F153: 917.7340208 | G153: 0.9831179715 | H153: 916.7509029 | I153: 0.01180935296 | L153: 12.86358303 | M153: 0.1519105923 | N153: 0.001525587579 | O153: 0.1192287582
A154: 0.1140000522 | B154: 376.5584764 | C154: 1.373742838 | D154: 152 | E154: 82.1467504 | F154: 917.8532496 | G154: 0.9443504806 | H154: 916.9088991 | I154: 0.01136524213 | L154: 12.86170682 | M154: 0.1461764123 | N154: 0.001468043406 | O154: 0.1145652455
A155: 0.1150000542 | B155: 369.9495431 | C155: 1.370643582 | D155: 153 | E155: 82.03218516 | F155: 917.9678148 | G155: 0.9071873642 | H155: 917.0606275 | I155: 0.01093795789 | L155: 12.85990505 | M155: 0.1406610999 | N155: 0.001412692505 | O155: 0.1100919405
A156: 0.1160000563 | B156: 363.3740516 | C156: 1.367547826 | D156: 154 | E156: 81.92209322 | F156: 918.0779068 | G156: 0.8715566676 | H156: 917.2063501 | I156: 0.01052685404 | L156: 12.85817459 | M156: 0.1353561271 | N156: 0.001359449647 | O156: 0.1058005127
A157: 0.1170000583 | B157: 356.8348081 | C157: 1.36445557 | D157: 155 | E157: 81.8162927 | F157: 918.1837073 | G157: 0.8373900632 | H157: 917.3463172 | I157: 0.01013130976 | L157: 12.85651248 | M157: 0.1302533104 | N157: 0.001308233032 | O157: 0.1016830378
A158: 0.1180000603 | B158: 350.3345668 | C158: 1.361366814 | D158: 156 | E158: 81.71460967 | F158: 918.2853903 | G158: 0.8046226405 | H158: 917.4807677 | I158: 0.009750728624 | L158: 12.85491588 | M158: 0.1253447963 | N158: 0.001258964139 | O158: 0.09773197503
A159: 0.1190000623 | B159: 343.8760243 | C159: 1.358281558 | D159: 157 | E159: 81.61687769 | F159: 918.3831223 | G159: 0.7731927091 | H159: 917.6099296 | I159: 0.009384537546 | L159: 12.85338209 | M159: 0.1206230468 | N159: 0.00121156759 | O159: 0.09394014565
A160: 0.1200000644 | B160: 337.4618154 | C160: 1.355199802 | D160: 158 | E160: 81.52293754 | F160: 918.4770625 | G160: 0.7430416153 | H160: 917.7340208 | I160: 0.009032185879 | L160: 12.8519085 | M160: 0.1160808265 | N160: 0.001165971019 | O160: 0.09030071346
A161: 0.1210000664 | B161: 331.0945076 | C161: 1.352121546 | D161: 159 | E161: 81.43263683 | F161: 918.5673632 | G161: 0.7141135706 | H161: 917.8532496 | I161: 0.00869314449 | L161: 12.85049266 | M161: 0.1117111895 | N161: 0.001122104942 | O161: 0.08680716599
A162: 0.1220000684 | B162: 324.7765973 | C162: 1.34904679 | D162: 160 | E162: 81.34582966 | F162: 918.6541703 | G162: 0.6863554911 | H162: 917.9678148 | I162: 0.00836690489 | L162: 12.8491322 | M162: 0.107507467 | N162: 0.001079902635 | O162: 0.08345329704
A163: 0.1230000705 | B163: 318.5105053 | C163: 1.345975534 | D163: 161 | E163: 81.26237637 | F163: 918.7376236 | G163: 0.6597168477 | H163: 918.0779068 | I163: 0.008052978407 | L163: 12.84782486 | M163: 0.1034632561 | N163: 0.001039300026 | O163: 0.08023319038
A164: 0.1240000725 | B164: 312.2985728 | C164: 1.342907778 | D164: 162 | E164: 81.18214318 | F164: 918.8178568 | G164: 0.6341495254 | H164: 918.1837073 | I164: 0.007750895383 | L164: 12.84656848 | M164: 0.09957240829 | N164: 0.001000235576 | O164: 0.07714120433
A165: 0.1250000745 | B165: 306.143058 | C165: 1.339843522 | D165: 163 | E165: 81.10500197 | F165: 918.894998 | G165: 0.6096076919 | H165: 918.2853903 | I165: 0.007460204416 | L165: 12.84536099 | M165: 0.09582901878 | N165: 0.000962650178 | O165: 0.07417195736
A166: 0.1260000765 | B166: 300.0461328 | C166: 1.336782766 | D166: 164 | E166: 81.03083002 | F166: 918.96917 | G166: 0.5860476742 | H166: 918.3831223 | I166: 0.007180471623 | L166: 12.84420042 | M166: 0.09222741665 | N166: 0.0009264870579 | O166: 0.07132031453
A167: 0.1270000786 | B167: 294.0098798 | C167: 1.33372551 | D167: 165 | E167: 80.9595097 | F167: 919.0404903 | G167: 0.5634278431 | H167: 918.4770625 | I167: 0.006911279942 | L167: 12.84308488 | M167: 0.08876215495 | N167: 0.0008916916748 | O167: 0.06858137476
A168: 0.1280000806 | B168: 288.0362892 | C168: 1.330671754 | D168: 166 | E168: 80.89092833 | F168: 919.1090717 | G168: 0.5417085044 | H168: 918.5673632 | I168: 0.006652228461 | L168: 12.84201256 | M168: 0.08542800147 | N168: 0.0008582116316 | O168: 0.0659504588
A169: 0.1290000826 | B169: 282.127257 | C169: 1.327621498 | D169: 167 | E169: 80.82497787 | F169: 919.1750221 | G169: 0.5208517972 | H169: 918.6541703 | I169: 0.006402931771 | L169: 12.84098173 | M169: 0.08221992987 | N169: 0.0008259965859 | O169: 0.06342309799
A170: 0.1300000846 | B170: 276.2845827 | C170: 1.324574742 | D170: 168 | E170: 80.76155477 | F170: 919.2384452 | G170: 0.5008215981 | H170: 918.7376236 | I170: 0.006163019352 | L170: 12.83999072 | M170: 0.07913311128 | N170: 0.0007949981669 | O170: 0.0609950236
A171: 0.1310000867 | B171: 270.5099675 | C171: 1.321531486 | D171: 169 | E171: 80.70055975 | F171: 919.2994403 | G171: 0.4815834314 | H171: 918.8178568 | I171: 0.005932134981 | L171: 12.83903795 | M171: 0.07616290615 | N171: 0.0007651698944 | O171: 0.05866215684
A172: 0.1320000887 | B172: 264.8050132 | C172: 1.318491731 | D172: 170 | E172: 80.64189759 | F172: 919.3581024 | G172: 0.4631043839 | H172: 918.894998 | I172: 0.005709936164 | L172: 12.8381219 | M172: 0.07330485651 | N172: 0.0007364671025 | O172: 0.05642059943
A173: 0.1330000907 | B173: 259.1712207 | C173: 1.315455475 | D173: 171 | E173: 80.58547699 | F173: 919.414523 | G173: 0.4453530259 | H173: 918.96917 | I173: 0.005496093596 | L173: 12.83724111 | M173: 0.07055467864 | N173: 0.0007088468656 | O173: 0.05426662464
A174: 0.1340000927 | B174: 253.6099895 | C174: 1.312422719 | D174: 172 | E174: 80.53121037 | F174: 919.4687896 | G174: 0.4282993361 | H174: 919.0404903 | I174: 0.005290290636 | L174: 12.83639418 | M174: 0.06790825592 | N174: 0.0006822679285 | O174: 0.05219666897
A175: 0.1350000948 | B175: 248.1226174 | C175: 1.309393463 | D175: 173 | E175: 80.4790137 | F175: 919.5209863 | G175: 0.4119146303 | H175: 919.1090717 | I175: 0.005092222809 | L175: 12.83557977 | M175: 0.06536163209 | N175: 0.0006566906387 | O175: 0.05020732416
A176: 0.1360000968 | B176: 242.7102999 | C176: 1.306367707 | D176: 174 | E176: 80.42880637 | F176: 919.5711936 | G176: 0.3961714956 | H176: 919.1750221 | I176: 0.004901597329 | L176: 12.83479661 | M176: 0.06291100479 | N176: 0.0006320768822 | O176: 0.04829532971
A177: 0.1370000988 | B177: 237.3741308 | C177: 1.303345452 | D177: 175 | E177: 80.38051104 | F177: 919.619489 | G177: 0.3810437274 | H177: 919.2384452 | I177: 0.004718132637 | L177: 12.83404346 | M177: 0.06055271932 | N177: 0.0006083900217 | O177: 0.04645756582
A178: 0.1380001009 | B178: 232.1151024 | C178: 1.300326696 | D178: 176 | E178: 80.33405348 | F178: 919.6659465 | G178: 0.3665062696 | H178: 919.2994403 | I178: 0.004541557961 | L178: 12.83331915 | M178: 0.05828326274 | N178: 0.0005855948375 | O178: 0.04469104664
A179: 0.1390001029 | B179: 226.9341061 | C179: 1.29731144 | D179: 177 | E179: 80.28936243 | F179: 919.7106376 | G179: 0.3525351594 | H179: 919.3581024 | I179: 0.004371612895 | L179: 12.83262253 | M179: 0.05609925815 | N179: 0.0005636574709 | O179: 0.04299291402
A180: 0.1400001049 | B180: 221.8319338 | C180: 1.294299684 | D180: 178 | E180: 80.24636952 | F180: 919.7536305 | G180: 0.339107474 | H180: 919.414523 | I180: 0.004208046991 | L180: 12.83195254 | M180: 0.05399745927 | N180: 0.0005425453699 | O180: 0.04136043142
A181: 0.1410001069 | B181: 216.8092784 | C181: 1.291291429 | D181: 179 | E181: 80.20500908 | F181: 919.7949909 | G181: 0.3262012808 | H181: 919.4687896 | I181: 0.004050619372 | L181: 12.83130812 | M181: 0.05197474525 | N181: 0.0005222272375 | O181: 0.03979097831
A182: 0.142000109 | B182: 211.8667361 | C182: 1.288286673 | D182: 180 | E182: 80.16521811 | F182: 919.8347819 | G182: 0.3137955901 | H182: 919.5209863 | I182: 0.003899098357 | L182: 12.83068829 | M182: 0.05002811562 | N182: 0.0005026729817 | O182: 0.03828204476
A183: 0.143000111 | B183: 207.0048073 | C183: 1.285285417 | D183: 181 | E183: 80.12693606 | F183: 919.8730639 | G183: 0.3018703107 | H183: 919.5711936 | I183: 0.003753261105 | L183: 12.83009208 | M183: 0.04815468556 | N183: 0.0004838536679 | O183: 0.03683122631
A184: 0.144000113 | B184: 202.2238988 | C184: 1.282287661 | D184: 182 | E184: 80.09010484 | F184: 919.9098952 | G184: 0.2904062073 | H184: 919.619489 | I184: 0.003612893269 | L184: 12.82951857 | M184: 0.04635168128 | N184: 0.000465741473 | O184: 0.03543621923
A185: 0.145000115 | B185: 197.5243261 | C185: 1.279293406 | D185: 183 | E185: 80.05466862 | F185: 919.9453314 | G185: 0.2793848607 | H185: 919.6659465 | I185: 0.003477788666 | L185: 12.82896689 | M185: 0.04461643563 | N185: 0.0004483096419 | O185: 0.03409481583
A186: 0.1460001171 | B186: 192.9063151 | C186: 1.27630265 | D186: 184 | E186: 80.0205738 | F186: 919.9794262 | G186: 0.2687886299 | H186: 919.7106376 | I186: 0.003347748964 | L186: 12.82843618 | M186: 0.04294638392 | N186: 0.0004315324452 | O186: 0.03280490019
A187: 0.1470001191 | B187: 188.3700048 | C187: 1.273315394 | D187: 185 | E187: 79.9877689 | F187: 920.0122311 | G187: 0.258600616 | H187: 919.7536305 | I187: 0.003222583372 | L187: 12.82792564 | M187: 0.04133905985 | N187: 0.0004153851391 | O187: 0.03156444399
A188: 0.1480001211 | B188: 183.9154499 | C188: 1.270331639 | D188: 186 | E188: 79.95620446 | F188: 920.0437955 | G188: 0.2488046286 | H188: 919.7949909 | I188: 0.003102108353 | L188: 12.82743448 | M188: 0.03979209165 | N188: 0.0003998439265 | O188: 0.0303715026
A189: 0.1490001231 | B189: 179.5426232 | C189: 1.267351383 | D189: 187 | E189: 79.92583295 | F189: 920.074167 | G189: 0.2393851529 | H189: 919.8347819 | I189: 0.002986147341 | L189: 12.82696197 | M189: 0.03830319837 | N189: 0.0003848859202 | O189: 0.02922421138
A190: 0.1500001252 | B190: 175.2514186 | C190: 1.264374628 | D190: 188 | E190: 79.89660874 | F190: 920.1033913 | G190: 0.2303273195 | H190: 919.8730639 | I190: 0.002874530474 | L190: 12.82650737 | M190: 0.0368701863 | N190: 0.0003704891073 | O190: 0.02812078208
A191: 0.1510001272 | B191: 171.0416538 | C191: 1.261401372 | D191: 189 | E191: 79.86848796 | F191: 920.131512 | G191: 0.2216168753 | H191: 919.9098952 | I191: 0.002767094334 | L191: 12.82606999 | M191: 0.03549094561 | N191: 0.0003566323147 | O191: 0.02705949955
A192: 0.1520001292 | B192: 166.9130732 | C192: 1.258431616 | D192: 190 | E192: 79.84142846 | F192: 920.1585715 | G192: 0.2132401556 | H192: 919.9453314 | I192: 0.002663681698 | L192: 12.82564919 | M192: 0.03416344701 | N192: 0.0003432951771 | O192: 0.02603871845
A193: 0.1530001312 | B193: 162.8653513 | C193: 1.255465361 | D193: 191 | E193: 79.81538974 | F193: 920.1846103 | G193: 0.2051840582 | H193: 919.9794262 | I193: 0.002564141301 | L193: 12.82524431 | M193: 0.03288573865 | N193: 0.0003304581049 | O193: 0.02505686031
A194: 0.1540001333 | B194: 158.8980952 | C194: 1.252502605 | D194: 192 | E194: =$B$3-F194 -> 79.79033288 | F194: 920.2096671 | G194: 0.1974360184 | H194: 920.0122311 | I194: 0.002468327609 | L194: 12.82485476 | M194: 0.03165594308 | N194: =1-(1-$B$7)^M194 -> 0.0003181022544 | O194: 0.02411241053
A195: 0.1550001353 | B195: 155.0108481 | C195: 1.24954335 | D195: 193 | E195: 79.76622047 | F195: =F194+O194 -> 920.2337795 | G195: =F195-H195 -> 0.1899839849 | H195: =H194+O187 -> 920.0437955 | I195: 0.002376100594 | L195: =$B$5*(1-B$2)*((1-H195/$B$3)*(1-$B$6)+$B$6) -> 12.82447993 | M195: =I195*L195 -> 0.03047225438 | N195: 0.000306209499 | O195: 0.02320391569
A196: 0.1560001373 | B196: 151.2030922 | C196: 1.246587594 | D196: 194 | E196: 79.74301656 | F196: 920.2569834 | G196: 0.182816398 | H196: 920.074167 | I196: =G196/(E196+G196) -> 0.002287325527 | L196: 12.82411927 | M196: 0.02933293536 | N196: 0.000294762401 | O196: =E196*(1-B$2)*N196 -> 0.02232998087
A197: 0.1570001394 | B197: 147.474252 | C197: 1.243635339 | D197: 195 | E197: 79.72068657 | F197: 920.2793134 | G197: 0.1759221675 | H197: 920.1033913 | I197: 0.002201872774 | L197: 12.82377223 | M197: 0.02823631492 | N197: 0.0002837441853 | O197: 0.0214892672
A198: 0.1580001414 | B198: 143.8236975 | C198: 1.240686583 | D198: 196 | E198: 79.69919731 | F198: 920.3008027 | G198: 0.1692906526 | H198: 920.131512 | I198: 0.002119617598 | L198: 12.82343829 | M198: 0.02718078547 | N198: 0.0002731387136 | O198: 0.02068048942
A199: 0.1590001434 | B199: 140.2507469 | C199: 1.237741328 | D199: 197 | E199: 79.67851682 | F199: 920.3214832 | G199: 0.1629116425 | H199: 920.1585715 | I199: 0.002040439977 | L199: 12.82311696 | M199: 0.02616480048 | N199: 0.0002629304601 | O199: 0.01990241363
A200: 0.1600001454 | B200: 136.7546702 | C200: 1.234799572 | D200: 198 | E200: 79.6586144 | F200: 920.3413856 | G200: 0.1567753376 | H200: 920.1846103 | I200: 0.00196422442 | L200: 12.82280775 | M200: 0.02518687213 | N200: 0.0002531044876 | O200: 0.01915385514
... 140 more rows
